Workbook

Sheet Arkusz1
C5: 0 | D5: 500 | E5: 1000 | F5: 2500 | G5: 5000 | H5: 10000 | I5: 15000 | J5: 20000 | K5: 25000 | L5: 30000 | N5: 0 | O5: 25000 | P5: 30000 | Q5: 35000 | R5: 40000 | S5: 45000 | T5: 50000 | Y5: 0 | Z5: 500 | AA5: 1000 | AB5: 2500 | AC5: 5000 | AD5: 10000 | AE5: 15000 | AF5: 20000 | AG5: 25000 | AH5: 30000 | AI5: 35000 | AJ5: 40000 | AK5: 45000 | AL5: 50000
C6: 0.0433 | D6: 0.1187 | E6: 0.1402 | F6: 0.2308 | G6: 0.2512 | H6: 0.4184 | I6: 0.6292 | J6: 0.8137 | K6: 0.9112 | L6: 1.0208 | N6: 0.0412 | O6: 1.125 | P6: 0.988 | Q6: 1.2501 | R6: 1.4319 | S6: 1.676 | T6: 1.8177 | Y6: 0.0433 | Z6: =D6-$Y$11 -> 0.07295 | AA6: =E6-$Y$11 -> 0.09445 | AB6: 0.18505 | AC6: 0.20545 | AD6: 0.37265 | AE6: 0.58345 | AF6: 0.76795 | AG6: 0.86545 | AH6: 0.97505 | AI6: =Q6-$Y$11 -> 1.20435 | AJ6: 1.38615 | AK6: 1.63025 | AL6: 1.77195
A7: Normal | C7: 0.0475 | D7: 0.1598 | E7: 0.1405 | F7: 0.2153 | G7: 0.2751 | H7: 0.4243 | I7: 0.6688 | J7: 0.8388 | K7: 0.9729 | L7: 1.0293 | N7: 0.0408 | O7: 0.8024 | P7: 1.013 | Q7: 1.1902 | R7: 1.436 | S7: 1.6056 | T7: 1.7937 | W7: Normal | Y7: 0.0475 | Z7: =D7-$Y$11 -> 0.11405 | AA7: =E7-$Y$11 -> 0.09475 | AB7: =F7-$Y$11 -> 0.16955 | AC7: =G7-$Y$11 -> 0.22935 | AD7: =H7-$Y$11 -> 0.37855 | AE7: =I7-$Y$11 -> 0.62305 | AF7: =J7-$Y$11 -> 0.79305 | AG7: =K7-$Y$11 -> 0.92715 | AH7: =L7-$Y$11 -> 0.98355 | AI7: 1.14445 | AJ7: 1.39025 | AK7: 1.55985 | AL7: 1.74795
C8: 0.05 | D8: 0.1509 | E8: 0.1441 | F8: 0.1707 | G8: 0.2134 | H8: 0.4019 | I8: 0.6229 | J8: 0.8152 | K8: 0.9315 | L8: 1.2378 | N8: 0.0405 | O8: 0.4785 | P8: 0.9241 | Q8: 1.2786 | R8: 1.3747 | S8: 1.6137 | T8: 1.8064 | Y8: 0.05 | Z8: 0.10515 | AA8: 0.09835 | AB8: 0.12495 | AC8: 0.16765 | AD8: 0.35615 | AE8: 0.57715 | AF8: 0.76945 | AG8: 0.88575 | AH8: 1.19205 | AI8: 1.23285 | AJ8: 1.32895 | AK8: 1.56795 | AL8: 1.76065
C9: 0.0422 | D9: 0.1423 | E9: 0.1399 | F9: 0.1503 | G9: 0.2033 | H9: 0.4505 | I9: 0.6019 | J9: 0.8112 | K9: 0.9966 | L9: 1.1368 | O9: 0.7762 | P9: 0.9647 | Q9: 1.2067 | R9: 1.4426 | S9: 1.5117 | T9: 1.7849 | Y9: 0.0422 | Z9: 0.09655 | AA9: 0.09415 | AB9: 0.10455 | AC9: 0.15755 | AD9: 0.40475 | AE9: 0.55615 | AF9: 0.76545 | AG9: 0.95085 | AH9: 1.09105 | AI9: 1.16095 | AJ9: 1.39685 | AK9: 1.46595 | AL9: 1.73915
D10: 0.1431 | E10: 0.133 | F10: 0.1605 | G10: 0.2213 | H10: 0.4654 | I10: 0.5705 | J10: 0.7455 | K10: 0.9214 | L10: 1.1991 | O10: 1.0685 | P10: 0.9763 | Q10: 1.2591 | R10: 1.4016 | S10: 1.6036 | T10: 1.5997 | Z10: 0.09735 | AA10: 0.08725 | AB10: 0.11475 | AC10: 0.17555 | AD10: 0.41965 | AE10: 0.52475 | AF10: 0.69975 | AG10: 0.87565 | AH10: 1.15335 | AI10: 1.21335 | AJ10: 1.35585 | AK10: 1.55785 | AL10: 1.55395
B11: mean | C11: =AVERAGE(C6:C9) -> 0.04575 | D11: =AVERAGE(D6:D10) -> 0.14296 | E11: =AVERAGE(E6:E10) -> 0.13954 | F11: 0.18552 | G11: 0.23286 | H11: 0.4321 | I11: 0.61866 | J11: 0.80488 | K11: 0.94672 | L11: 1.12476 | N11: =AVERAGE(N6:N8) -> 0.04083333333 | O11: =AVERAGE(O6:O10) -> 0.85012 | P11: =AVERAGE(P6:P10) -> 0.97322 | Q11: =AVERAGE(Q6:Q10) -> 1.23694 | R11: =AVERAGE(R6:R10) -> 1.41736 | S11: =AVERAGE(S6:S10) -> 1.60212 | T11: =AVERAGE(T6:T10) -> 1.76048 | X11: mean | Y11: =AVERAGE(Y6:Y9) -> 0.04575 | Z11: 0.09721 | AA11: 0.09379 | AB11: 0.13977 | AC11: 0.18711 | AD11: 0.38635 | AE11: 0.57291 | AF11: 0.75913 | AG11: 0.90097 | AH11: 1.07901 | AI11: 1.19119 | AJ11: 1.37161 | AK11: 1.55637 | AL11: 1.71473
B12: mean-blank | D12: =D11-$C$11 -> 0.09721 | E12: =E11-$C$11 -> 0.09379 | F12: 0.13977 | G12: 0.18711 | H12: 0.38635 | I12: 0.57291 | J12: 0.75913 | K12: 0.90097 | L12: 1.07901 | O12: =O11-$N$11 -> 0.8092866667 | P12: =P11-$N$11 -> 0.9323866667 | Q12: 1.196106667 | R12: 1.376526667 | S12: 1.561286667 | T12: 1.719646667
B13: SD | C13: =STDEV(C6:C9) -> 0.003639139092 | D13: =STDEV(D6:D9) -> 0.01765981785 | E13: 0.001965324401 | F13: 0.03759746224 | G13: 0.03336490172 | H13: 0.02018173679 | I13: 0.02795317513 | J13: 0.01282325362 | K13: 0.0387575799 | L13: 0.1024071734 | N13: =STDEV(N6:N8) -> 0.0003511884584 | O13: =STDEV(O6:O9) -> 0.2642469473 | P13: =STDEV(P6:P9) -> 0.0377884021 | Q13: 0.04035286029 | R13: 0.03137780532 | S13: 0.06777337235 | T13: 0.01437738386
C18: 0 | D18: 500 | E18: 1000 | F18: 2500 | G18: 5000 | H18: 10000 | I18: 15000 | J18: 20000 | K18: 25000 | L18: 30000 | N18: 0 | O18: 25000 | P18: 30000 | Q18: 35000 | R18: 40000 | S18: 45000 | T18: 50000 | Y18: 0 | Z18: 500 | AA18: 1000 | AB18: 2500 | AC18: 5000 | AD18: 10000 | AE18: 15000 | AF18: 20000 | AG18: 25000 | AH18: 30000 | AI18: 35000 | AJ18: 40000 | AK18: 45000 | AL18: 50000
C19: 0.0433 | D19: 0.1159 | E19: 0.1412 | F19: 0.1689 | G19: 0.3161 | H19: 0.3753 | I19: 0.5008 | J19: 0.5194 | K19: 0.6776 | L19: 0.7266 | N19: 0.0412 | O19: 0.7398 | P19: 0.8704 | Q19: 0.9754 | R19: 1.0143 | S19: 0.5937 | T19: 0.4329 | Y19: 0.0433 | Z19: =D19-$C$24 -> 0.07015 | AA19: =E19-$C$24 -> 0.09545 | AB19: 0.12315 | AC19: 0.27035 | AD19: 0.32955 | AE19: 0.45505 | AF19: 0.47365 | AG19: =O19-$N$24 -> 0.6989666667 | AH19: 0.8295666667 | AI19: 0.9345666667 | AJ19: 0.9734666667 | AK19: 0.5528666667 | AL19: 0.3920666667
C20: 0.0475 | D20: 0.1283 | E20: 0.1394 | F20: 0.1642 | G20: 0.2473 | H20: 0.3983 | I20: 0.4073 | J20: 0.6775 | K20: 0.6229 | L20: 0.733 | N20: 0.0408 | O20: 0.7348 | P20: 0.7861 | Q20: 0.9464 | R20: 1.0761 | S20: 0.6119 | T20: 0.5053 | Y20: 0.0475 | Z20: =D20-$C$24 -> 0.08255 | AA20: =E20-$C$24 -> 0.09365 | AB20: =F20-$C$24 -> 0.11845 | AC20: =G20-$C$24 -> 0.20155 | AD20: =H20-$C$24 -> 0.35255 | AE20: =I20-$C$24 -> 0.36155 | AF20: =J20-$C$24 -> 0.63175 | AG20: 0.6939666667 | AH20: 0.7452666667 | AI20: 0.9055666667 | AJ20: 1.035266667 | AK20: 0.5710666667 | AL20: 0.4644666667
A21: Serum Free | C21: 0.05 | D21: 0.1128 | E21: 0.1291 | F21: 0.1265 | G21: 0.1437 | H21: 0.3374 | I21: 0.3953 | J21: 0.5171 | K21: 0.7065 | L21: 0.5602 | N21: 0.0405 | O21: 0.71 | P21: 0.8009 | Q21: 0.9757 | R21: 1.0936 | S21: 0.5938 | T21: 0.5288 | W21: Serum Free | Y21: 0.05 | Z21: 0.06705 | AA21: 0.08335 | AB21: 0.08075 | AC21: 0.09795 | AD21: 0.29165 | AE21: 0.34955 | AF21: 0.47135 | AG21: 0.6691666667 | AH21: 0.7600666667 | AI21: 0.9348666667 | AJ21: 1.052766667 | AK21: 0.5529666667 | AL21: 0.4879666667
C22: 0.0422 | D22: 0.105 | E22: 0.1341 | F22: 0.1918 | G22: 0.2227 | H22: 0.4037 | I22: 0.4465 | J22: 0.7515 | K22: 0.6922 | L22: 0.8205 | O22: 0.6115 | P22: 0.8257 | Q22: 0.8356 | R22: 0.9102 | S22: 0.7077 | T22: 0.4274 | Y22: 0.0422 | Z22: 0.05925 | AA22: 0.08835 | AB22: 0.14605 | AC22: 0.17695 | AD22: 0.35795 | AE22: 0.40075 | AF22: 0.70575 | AG22: 0.5706666667 | AH22: 0.7848666667 | AI22: 0.7947666667 | AJ22: 0.8693666667 | AK22: 0.6668666667 | AL22: 0.3865666667
D23: 0.1176 | E23: 0.1296 | F23: 0.1452 | G23: 0.2427 | H23: 0.3126 | I23: 0.4659 | J23: 0.5416 | K23: 0.7627 | L23: 0.6413 | O23: 0.6432 | P23: 0.7072 | Q23: 0.7776 | R23: 0.9164 | S23: 0.6824 | T23: 0.539 | Z23: 0.07185 | AA23: 0.08385 | AB23: 0.09945 | AC23: 0.19695 | AD23: 0.26685 | AE23: 0.42015 | AF23: 0.49585 | AG23: 0.6023666667 | AH23: 0.6663666667 | AI23: 0.7367666667 | AJ23: 0.8755666667 | AK23: 0.6415666667 | AL23: 0.4981666667
B24: mean | C24: =AVERAGE(C19:C22) -> 0.04575 | D24: =AVERAGE(D19:D23) -> 0.11592 | E24: =AVERAGE(E19:E23) -> 0.13468 | F24: =AVERAGE(F19:F23) -> 0.15932 | G24: =AVERAGE(G19:G23) -> 0.2345 | H24: =AVERAGE(H19:H23) -> 0.36546 | I24: =AVERAGE(I19:I23) -> 0.44316 | J24: =AVERAGE(J19:J23) -> 0.60142 | K24: =AVERAGE(K19:K23) -> 0.69238 | L24: =AVERAGE(L19:L23) -> 0.69632 | N24: =AVERAGE(N19:N21) -> 0.04083333333 | O24: =AVERAGE(O19:O23) -> 0.68786 | P24: =AVERAGE(P19:P23) -> 0.79806 | Q24: =AVERAGE(Q19:Q23) -> 0.90214 | R24: =AVERAGE(R19:R23) -> 1.00212 | S24: =AVERAGE(S19:S23) -> 0.6379 | T24: =AVERAGE(T19:T23) -> 0.48668 | X24: mean | Y24: =AVERAGE(Y19:Y22) -> 0.04575 | Z24: 0.07017 | AA24: 0.08893 | AB24: 0.11357 | AC24: 0.18875 | AD24: 0.31971 | AE24: 0.39741 | AF24: 0.55567 | AG24: 0.6470266667 | AH24: 0.7572266667 | AI24: 0.8613066667 | AJ24: 0.9612866667 | AK24: 0.5970666667 | AL24: 0.4458466667
B25: mean-blank | D25: =D24-$C$24 -> 0.07017 | E25: =E24-$C$24 -> 0.08893 | F25: 0.11357 | G25: 0.18875 | H25: 0.31971 | I25: 0.39741 | J25: 0.55567 | K25: 0.64663 | L25: 0.65057 | O25: =O24-$N$24 -> 0.6470266667 | P25: =P24-$N$24 -> 0.7572266667 | Q25: 0.8613066667 | R25: 0.9612866667 | S25: 0.5970666667 | T25: 0.4458466667
B26: SD | C26: =STDEV(C19:C22) -> 0.003639139092 | D26: =STDEV(D19:D22) -> 0.009687448925 | E26: 0.005471441005 | F26: 0.02706689245 | G26: 0.07115586179 | H26: 0.03014635135 | I26: 0.04754214797 | J26: 0.1172670848 | K26: 0.0365563492 | L26: 0.1087118937 | N26: =STDEV(N19:N21) -> 0.0003511884584 | O26: =STDEV(O19:O22) -> 0.05978719902 | P26: 0.03689745926 | Q26: 0.06655090157 | R26: 0.08286995837 | S26: 0.05462425438 | T26: 0.05113009551
G31: normal | H31: SD | I31: serum-free | J31: SD
F32: 500.00 | G32: =D12 -> 0.0972 | H32: =D13 -> 0.0177 | I32: =D25 -> 0.0702 | J32: =D26 -> 0.0097
F33: 1000.00 | G33: =E12 -> 0.0938 | H33: =E13 -> 0.0020 | I33: =E25 -> 0.0889 | J33: =E26 -> 0.0055
F34: 2500.00 | G34: =F12 -> 0.1398 | H34: =F13 -> 0.0376 | I34: =F25 -> 0.1136 | J34: =F26 -> 0.0271
F35: 5000.00 | G35: =G12 -> 0.1871 | H35: =G13 -> 0.0334 | I35: =G25 -> 0.1888 | J35: =G26 -> 0.0712
F36: 10000.00 | G36: =H12 -> 0.3864 | H36: =H13 -> 0.0202 | I36: =H25 -> 0.3197 | J36: =H26 -> 0.0301
F37: 15000.00 | G37: =I12 -> 0.5729 | H37: =I13 -> 0.0280 | I37: =I25 -> 0.3974 | J37: =I26 -> 0.0475
F38: 20000.00 | G38: =J12 -> 0.7591 | H38: =J13 -> 0.0128 | I38: =J25 -> 0.5557 | J38: =J26 -> 0.1173
F39: 25000.00 | G39: =K12 -> 0.9010 | H39: =K13 -> 0.0388 | I39: =O25 -> 0.6470 | J39: =O26 -> 0.0598
F40: 30000.00 | G40: =L12 -> 1.0790 | H40: =L13 -> 0.1024 | I40: =P25 -> 0.7572 | J40: =P26 -> 0.0369
F41: 35000.00 | G41: =Q12 -> 1.1961 | H41: =Q13 -> 0.0404 | I41: =Q25 -> 0.8613 | J41: =Q26 -> 0.0666
F42: 40000.00 | G42: =R12 -> 1.3765 | H42: =R13 -> 0.0314 | I42: =R25 -> 0.9613 | J42: =R26 -> 0.0829
F43: 45000.00 | G43: =S12 -> 1.5613 | H43: =S13 -> 0.0678 | I43: =S25 -> 0.5971 | J43: =S26 -> 0.0546
F44: 50000.00 | G44: =T12 -> 1.7196 | H44: =T13 -> 0.0144 | I44: =T25 -> 0.4458 | J44: =T26 -> 0.0511
AK51: =0.0836-0.10713 -> -0.02353
AK53: =AK51/0.00002 -> -1176.5

Sheet Arkusz2

Sheet Arkusz3
